[Event "*** MasterClass Titled Tuesday Blitz"]
[Site "Chess.com"]
[Date "2017.09.05"]
[Round "8"]
[White "DiogenesSinopeus"]
[Black "NTBT_DHS"]
[Result "1-0"]
[WhiteElo "2380"]
[BlackElo "2493"]
[TimeControl "180+2"]
[EndTime "14:56:57 PDT"]
[Termination "DiogenesSinopeus won by checkmate"]

1. d4 {[%clk 0:03:01.9]} 1... g6 {[%clk 0:02:57.2]} 2. c4 {[%clk 0:03:02.7]}
2... Bg7 {[%clk 0:02:57.9]} 3. Nf3 {[%clk 0:03:04.2]} 3... Nf6 {[%clk
0:02:59.8]} 4. Nc3 {[%clk 0:03:04.7]} 4... O-O {[%clk 0:03:01.7]} 5. e4 {[%clk
0:03:06]} 5... d6 {[%clk 0:03:03.6]} 6. Be2 {[%clk 0:03:07.4]} 6... e5 {[%clk
0:03:05.3]} 7. dxe5 {[%clk 0:03:09.3]} 7... dxe5 {[%clk 0:03:06.3]} 8. Qxd8
{[%clk 0:03:11.2]} 8... Rxd8 {[%clk 0:03:06.9]} 9. Nd5 {[%clk 0:03:13.1]} 9...
Nxd5 {[%clk 0:03:07.1]} 10. cxd5 {[%clk 0:03:15]} 10... c6 {[%clk 0:03:08.3]}
11. Bc4 {[%clk 0:03:16]} 11... b5 {[%clk 0:03:09.5]} 12. Bb3 {[%clk 0:03:16.7]}
12... a5 {[%clk 0:03:10.9]} 13. Bg5 {[%clk 0:03:17.2]} 13... Rd7 {[%clk
0:03:09]} 14. Rc1 {[%clk 0:03:09.4]} 14... Bb7 {[%clk 0:03:09.4]} 15. Ke2 {[%clk
0:03:11]} 15... a4 {[%clk 0:03:05.7]} 16. dxc6 {[%clk 0:03:11.9]} 16... Nxc6
{[%clk 0:03:03.2]} 17. Bd5 {[%clk 0:03:12.8]} 17... Nd4+ {[%clk 0:02:58.9]} 18.
Nxd4 {[%clk 0:03:12.5]} 18... Bxd5 {[%clk 0:03:00.1]} 19. exd5 {[%clk
0:03:12.1]} 19... exd4 {[%clk 0:03:01.2]} 20. Rc5 {[%clk 0:03:08.6]} 20... Rb8
{[%clk 0:02:54]} 21. Rhc1 {[%clk 0:02:56.3]} 21... h6 {[%clk 0:02:53.1]} 22. Bf4
{[%clk 0:02:33]} 22... Rbb7 {[%clk 0:02:46]} 23. Kd3 {[%clk 0:02:29]} 23... g5
{[%clk 0:02:42.1]} 24. Bd2 {[%clk 0:02:11.6]} 24... Kh7 {[%clk 0:02:33.9]} 25.
Re1 {[%clk 0:01:47.4]} 25... Bf8 {[%clk 0:02:25.3]} 26. Rc8 {[%clk 0:01:46]}
26... Bd6 {[%clk 0:02:25.7]} 27. Ree8 {[%clk 0:01:43.4]} 27... b4 {[%clk
0:02:20.2]} 28. g4 {[%clk 0:01:37.9]} 28... Bxh2 {[%clk 0:02:05.3]} 29. Rh8+
{[%clk 0:01:38.7]} 29... Kg7 {[%clk 0:02:05.9]} 30. Rcg8+ {[%clk 0:01:39.6]}
30... Kf6 {[%clk 0:02:07.3]} 31. Rxh6+ {[%clk 0:01:40.8]} 31... Ke7 {[%clk
0:02:08.8]} 32. Rxh2 {[%clk 0:01:08.5]} 32... Rxd5 {[%clk 0:02:08.1]} 33. Rxg5
{[%clk 0:01:06.5]} 33... Rxg5 {[%clk 0:02:06.9]} 34. Bxg5+ {[%clk 0:01:08.4]}
34... Ke8 {[%clk 0:02:02.6]} 35. Rh8+ {[%clk 0:01:07.9]} 35... Kd7 {[%clk
0:02:03.3]} 36. Rd8+ {[%clk 0:01:08.6]} 36... Ke6 {[%clk 0:02:04.7]} 37. Rxd4
{[%clk 0:01:09.4]} 37... f6 {[%clk 0:02:00.7]} 38. Bd2 {[%clk 0:01:08.3]} 38...
b3 {[%clk 0:02:00.3]} 39. a3 {[%clk 0:01:09.5]} 39... Ra7 {[%clk 0:02:00.8]} 40.
Be3 {[%clk 0:01:10.3]} 40... Ra6 {[%clk 0:02:01.7]} 41. f4 {[%clk 0:01:11]}
41... Kf7 {[%clk 0:02:02.4]} 42. f5 {[%clk 0:01:11.5]} 42... Ke7 {[%clk
0:02:03.4]} 43. g5 {[%clk 0:01:11.2]} 43... fxg5 {[%clk 0:02:01.4]} 44. Bxg5+
{[%clk 0:01:13.1]} 44... Kf7 {[%clk 0:02:00.8]} 45. Rd7+ {[%clk 0:01:13.8]}
45... Ke8 {[%clk 0:02:02.1]} 46. Rb7 {[%clk 0:01:08.9]} 46... Rc6 {[%clk
0:02:02.4]} 47. f6 {[%clk 0:01:07.1]} 47... Re6 {[%clk 0:01:38.3]} 48. Re7+
{[%clk 0:01:01.6]} 48... Rxe7 {[%clk 0:01:33.2]} 49. fxe7 {[%clk 0:01:03.5]}
49... Kf7 {[%clk 0:01:34.8]} 50. Kc4 {[%clk 0:01:04.7]} 50... Ke8 {[%clk
0:01:36.4]} 51. Kb4 {[%clk 0:01:04.3]} 51... Kd7 {[%clk 0:01:38.3]} 52. Kxa4
{[%clk 0:01:06]} 52... Ke8 {[%clk 0:01:39.9]} 53. Kxb3 {[%clk 0:01:07.9]} 53...
Kd7 {[%clk 0:01:41.8]} 54. Kc4 {[%clk 0:01:09.5]} 54... Ke8 {[%clk 0:01:43.7]}
55. Kd5 {[%clk 0:01:10.7]} 55... Kd7 {[%clk 0:01:45.6]} 56. a4 {[%clk
0:01:10.6]} 56... Ke8 {[%clk 0:01:47.5]} 57. a5 {[%clk 0:01:11.9]} 57... Kf7
{[%clk 0:01:49.4]} 58. Kd6 {[%clk 0:01:11.3]} 58... Ke8 {[%clk 0:01:51.3]} 59.
a6 {[%clk 0:01:12.1]} 59... Kf7 {[%clk 0:01:52.4]} 60. Kd7 {[%clk 0:01:13.5]}
60... Kg7 {[%clk 0:01:53.4]} 61. e8=Q {[%clk 0:01:14]} 61... Kh7 {[%clk
0:01:55.3]} 62. Qf7+ {[%clk 0:01:13.5]} 62... Kh8 {[%clk 0:01:56.5]} 63. Bf6#
{[%clk 0:01:15]} 1-0

[Event "*** MasterClass Titled Tuesday Blitz"]
[Site "Chess.com"]
[Date "2017.09.05"]
[Round "8"]
[White "goingin33"]
[Black "ditkin25"]
[Result "0-1"]
[WhiteElo "2271"]
[BlackElo "2236"]
[TimeControl "180+2"]
[EndTime "14:57:17 PDT"]
[Termination "ditkin25 won by checkmate"]

1. e4 {[%clk 0:03:02]} 1... c6 {[%clk 0:02:59.9]} 2. d4 {[%clk 0:03:02.9]} 2...
d5 {[%clk 0:03:01]} 3. e5 {[%clk 0:03:04.4]} 3... Bf5 {[%clk 0:03:01.4]} 4. h4
{[%clk 0:03:04.9]} 4... h5 {[%clk 0:03:01.8]} 5. Bg5 {[%clk 0:03:05.6]} 5... Qb6
{[%clk 0:03:01.2]} 6. Bd3 {[%clk 0:03:06.7]} 6... Qxd4 {[%clk 0:03:01]} 7. Nf3
{[%clk 0:03:04.4]} 7... Qg4 {[%clk 0:03:01.8]} 8. O-O {[%clk 0:03:01.5]} 8...
Bxd3 {[%clk 0:02:46.7]} 9. Qxd3 {[%clk 0:03:03.5]} 9... e6 {[%clk 0:02:47.6]}
10. c4 {[%clk 0:02:46.6]} 10... Qxc4 {[%clk 0:02:41.3]} 11. Qxc4 {[%clk
0:02:46.6]} 11... dxc4 {[%clk 0:02:42.3]} 12. Nbd2 {[%clk 0:02:40.4]} 12... f6
{[%clk 0:02:17.7]} 13. Bf4 {[%clk 0:02:31.9]} 13... Ne7 {[%clk 0:01:59.6]} 14.
Nxc4 {[%clk 0:02:21.1]} 14... Nd5 {[%clk 0:01:59.8]} 15. Bg3 {[%clk 0:02:21.6]}
15... Nd7 {[%clk 0:01:25.3]} 16. Rfe1 {[%clk 0:02:21.9]} 16... Kf7 {[%clk
0:01:23.3]} 17. Re2 {[%clk 0:02:00.5]} 17... Bb4 {[%clk 0:01:14]} 18. a3 {[%clk
0:02:00.6]} 18... b5 {[%clk 0:01:06.2]} 19. axb4 {[%clk 0:01:25.6]} 19... bxc4
{[%clk 0:01:07]} 20. Rc1 {[%clk 0:01:27.6]} 20... N7b6 {[%clk 0:01:01]} 21. Nd4
{[%clk 0:01:26.4]} 21... Nxb4 {[%clk 0:00:36.6]} 22. exf6 {[%clk 0:01:27]} 22...
gxf6 {[%clk 0:00:37.9]} 23. Bd6 {[%clk 0:01:27.3]} 23... Nd3 {[%clk 0:00:36.5]}
24. Rd1 {[%clk 0:01:20.7]} 24... Rhe8 {[%clk 0:00:33.8]} 25. b3 {[%clk
0:01:18.2]} 25... Rad8 {[%clk 0:00:26.8]} 26. bxc4 {[%clk 0:01:06.8]} 26... Rxd6
{[%clk 0:00:27.7]} 27. Rxd3 {[%clk 0:01:08]} 27... e5 {[%clk 0:00:20.5]} 28. c5
{[%clk 0:01:08.1]} 28... Rxd4 {[%clk 0:00:21.6]} 29. Ra3 {[%clk 0:01:02.6]}
29... Nc8 {[%clk 0:00:19.3]} 30. Rb2 {[%clk 0:01:03.6]} 30... Re7 {[%clk
0:00:19.6]} 31. Rb8 {[%clk 0:01:03.9]} 31... Rc7 {[%clk 0:00:20.3]} 32. g3
{[%clk 0:00:55.5]} 32... Rd5 {[%clk 0:00:19.2]} 33. Rc3 {[%clk 0:00:56]} 33...
Ke6 {[%clk 0:00:14.3]} 34. Kg2 {[%clk 0:00:55.4]} 34... e4 {[%clk 0:00:15.3]}
35. Kh3 {[%clk 0:00:55.2]} 35... Ke5 {[%clk 0:00:16.3]} 36. g4 {[%clk
0:00:55.9]} 36... Kd4 {[%clk 0:00:15.8]} 37. Rc1 {[%clk 0:00:55.4]} 37... hxg4+
{[%clk 0:00:17]} 38. Kxg4 {[%clk 0:00:56.4]} 38... Rxc5 {[%clk 0:00:17.9]} 39.
Rd1+ {[%clk 0:00:58]} 39... Ke5 {[%clk 0:00:18.7]} 40. Rd8 {[%clk 0:00:59.5]}
40... Nd6 {[%clk 0:00:18]} 41. h5 {[%clk 0:00:59.5]} 41... Rg7+ {[%clk
0:00:18.4]} 42. Kh4 {[%clk 0:00:59.4]} 42... Kf4 {[%clk 0:00:19.1]} 43. h6
{[%clk 0:00:59]} 43... Rg4+ {[%clk 0:00:19.3]} 44. Kh3 {[%clk 0:00:58.3]} 44...
Rh5# {[%clk 0:00:21.2]} 0-1

[Event "*** MasterClass Titled Tuesday Blitz"]
[Site "Chess.com"]
[Date "2017.09.05"]
[Round "8"]
[White "Frolik67"]
[Black "popov_m"]
[Result "0-1"]
[WhiteElo "2507"]
[BlackElo "2457"]
[TimeControl "180+2"]
[EndTime "14:57:42 PDT"]
[Termination "popov_m won by checkmate"]

1. e4 {[%clk 0:03:01.9]} 1... g6 {[%clk 0:02:57.6]} 2. d4 {[%clk 0:03:01.9]}
2... Bg7 {[%clk 0:02:58.5]} 3. Nf3 {[%clk 0:03:02.5]} 3... d6 {[%clk 0:02:59.9]}
4. Nc3 {[%clk 0:03:03.4]} 4... Nf6 {[%clk 0:03:00.5]} 5. Bc4 {[%clk 0:03:04.1]}
5... O-O {[%clk 0:03:01.9]} 6. O-O {[%clk 0:03:04.9]} 6... a6 {[%clk 0:03:00.8]}
7. Re1 {[%clk 0:03:05.3]} 7... b5 {[%clk 0:03:00.2]} 8. Bb3 {[%clk 0:03:06.3]}
8... Bb7 {[%clk 0:03:01.5]} 9. e5 {[%clk 0:03:02.9]} 9... dxe5 {[%clk
0:02:38.2]} 10. Nxe5 {[%clk 0:03:02.9]} 10... Nbd7 {[%clk 0:02:28.7]} 11. Bg5
{[%clk 0:03:01.6]} 11... Nb6 {[%clk 0:02:18.1]} 12. Qd2 {[%clk 0:02:48.6]} 12...
b4 {[%clk 0:02:04.7]} 13. Na4 {[%clk 0:02:45.5]} 13... Ne4 {[%clk 0:01:56.4]}
14. Rxe4 {[%clk 0:02:42.1]} 14... Bxe4 {[%clk 0:01:55.3]} 15. Nc5 {[%clk
0:02:42.7]} 15... Bd5 {[%clk 0:01:46.4]} 16. Qxb4 {[%clk 0:02:36.8]} 16... Bxb3
{[%clk 0:01:06.7]} 17. Nxb3 {[%clk 0:02:28]} 17... f6 {[%clk 0:00:46.7]} 18. Nc6
{[%clk 0:02:26.2]} 18... Qd6 {[%clk 0:00:43.7]} 19. Nxe7+ {[%clk 0:02:22.6]}
19... Kf7 {[%clk 0:00:43.4]} 20. Nc5 {[%clk 0:02:06.2]} 20... Kxe7 {[%clk
0:00:19.2]} 21. Bf4 {[%clk 0:01:47.9]} 21... Qd5 {[%clk 0:00:16.5]} 22. Bxc7
{[%clk 0:01:46]} 22... Kf7 {[%clk 0:00:12.3]} 23. Qxb6 {[%clk 0:01:41.1]} 23...
f5 {[%clk 0:00:10.8]} 24. c3 {[%clk 0:01:39.8]} 24... Rfe8 {[%clk 0:00:10.3]}
25. Bf4 {[%clk 0:01:36.4]} 25... Kg8 {[%clk 0:00:10.9]} 26. Nxa6 {[%clk
0:01:30.4]} 26... Qe4 {[%clk 0:00:11]} 27. g3 {[%clk 0:01:17.5]} 27... Re6
{[%clk 0:00:06.5]} 28. Qxe6+ {[%clk 0:01:01.9]} 28... Qxe6 {[%clk 0:00:07.3]}
29. Nc7 {[%clk 0:01:03.6]} 29... Qe4 {[%clk 0:00:06.7]} 30. Nxa8 {[%clk
0:01:04.6]} 30... Qxa8 {[%clk 0:00:08.6]} 31. a4 {[%clk 0:01:05.4]} 31... Kf7
{[%clk 0:00:06]} 32. a5 {[%clk 0:01:06.2]} 32... Ke6 {[%clk 0:00:06.7]} 33. a6
{[%clk 0:01:07.3]} 33... Qa7 {[%clk 0:00:07.4]} 34. b4 {[%clk 0:01:05.4]} 34...
Kd5 {[%clk 0:00:08.5]} 35. Ra5+ {[%clk 0:01:03.8]} 35... Ke4 {[%clk 0:00:08.9]}
36. Be3 {[%clk 0:01:00.7]} 36... Kf3 {[%clk 0:00:09.6]} 37. d5 {[%clk
0:00:54.8]} 37... Qc7 {[%clk 0:00:10.6]} 38. Rc5 {[%clk 0:00:47.8]} 38... Qd7
{[%clk 0:00:12]} 39. Kf1 {[%clk 0:00:45.2]} 39... Qa4 {[%clk 0:00:12.9]} 40. Ke1
{[%clk 0:00:40.9]} 40... Qc2 {[%clk 0:00:11.6]} 41. Bd2 {[%clk 0:00:37.2]} 41...
Qb1+ {[%clk 0:00:12.8]} 42. Bc1 {[%clk 0:00:39]} 42... Qxc1# {[%clk 0:00:14.3]}
0-1

[Event "*** MasterClass Titled Tuesday Blitz"]
[Site "Chess.com"]
[Date "2017.09.05"]
[Round "8"]
[White "Bryakin_Mikhail"]
[Black "ALeks_Ivlev"]
[Result "0-1"]
[WhiteElo "2529"]
[BlackElo "2449"]
[TimeControl "180+2"]
[EndTime "14:57:44 PDT"]
[Termination "ALeks_Ivlev won by resignation"]

1. d4 {[%clk 0:02:56.3]} 1... Nf6 {[%clk 0:02:59.2]} 2. c4 {[%clk 0:02:57.1]}
2... e6 {[%clk 0:03:00.4]} 3. Nf3 {[%clk 0:02:58]} 3... Bb4+ {[%clk 0:03:00.9]}
4. Bd2 {[%clk 0:02:58.8]} 4... Qe7 {[%clk 0:03:01.4]} 5. g3 {[%clk 0:03:00.1]}
5... O-O {[%clk 0:03:01.5]} 6. Bg2 {[%clk 0:03:01.4]} 6... Nc6 {[%clk
0:03:02.5]} 7. O-O {[%clk 0:03:00.4]} 7... Bxd2 {[%clk 0:03:03.4]} 8. Nbxd2
{[%clk 0:03:00.2]} 8... d6 {[%clk 0:03:04.4]} 9. e4 {[%clk 0:02:58.9]} 9... e5
{[%clk 0:03:05.2]} 10. d5 {[%clk 0:02:58.6]} 10... Nd8 {[%clk 0:03:06.2]} 11.
Ne1 {[%clk 0:02:59]} 11... a5 {[%clk 0:03:06.8]} 12. Nd3 {[%clk 0:02:58.2]}
12... g6 {[%clk 0:03:00.6]} 13. b3 {[%clk 0:02:57.6]} 13... Nd7 {[%clk
0:02:46.4]} 14. Qe2 {[%clk 0:02:55.8]} 14... Nc5 {[%clk 0:02:47.1]} 15. Nb2
{[%clk 0:02:53.7]} 15... a4 {[%clk 0:02:44.3]} 16. b4 {[%clk 0:02:52.6]} 16...
a3 {[%clk 0:02:45.4]} 17. Nd1 {[%clk 0:02:46.8]} 17... Na6 {[%clk 0:02:42.8]}
18. Rb1 {[%clk 0:02:46.2]} 18... c5 {[%clk 0:02:43.6]} 19. b5 {[%clk 0:02:40.5]}
19... Nb4 {[%clk 0:02:43.4]} 20. Nb3 {[%clk 0:02:37.2]} 20... f5 {[%clk
0:02:42]} 21. Nc3 {[%clk 0:02:33.6]} 21... f4 {[%clk 0:02:36.5]} 22. f3 {[%clk
0:02:34.2]} 22... fxg3 {[%clk 0:02:34]} 23. hxg3 {[%clk 0:02:36.1]} 23... h5
{[%clk 0:02:33.5]} 24. f4 {[%clk 0:02:12.6]} 24... Bg4 {[%clk 0:02:21.9]} 25.
Bf3 {[%clk 0:01:58.2]} 25... Bh3 {[%clk 0:01:54.7]} 26. Bg2 {[%clk 0:01:57]}
26... Bxg2 {[%clk 0:01:55.5]} 27. Kxg2 {[%clk 0:01:58]} 27... Nf7 {[%clk
0:01:56.3]} 28. f5 {[%clk 0:01:52.1]} 28... Nh6 {[%clk 0:01:57]} 29. fxg6 {[%clk
0:01:40.7]} 29... Qg5 {[%clk 0:01:56]} 30. Qd2 {[%clk 0:01:14.8]} 30... Qxg6
{[%clk 0:01:51.8]} 31. Rbd1 {[%clk 0:01:03.4]} 31... h4 {[%clk 0:01:33.2]} 32.
Qe3 {[%clk 0:00:57.3]} 32... Ng4 {[%clk 0:01:31.3]} 33. Qe2 {[%clk 0:00:53.9]}
33... Nf2 {[%clk 0:01:15.2]} 34. Qe3 {[%clk 0:00:22.3]} 34... Nxd1 {[%clk
0:01:14.6]} 35. Rxd1 {[%clk 0:00:23.5]} 35... Qxg3+ {[%clk 0:00:54.8]} 36. Qxg3+
{[%clk 0:00:24.5]} 36... hxg3 {[%clk 0:00:55.1]} 37. Kxg3 {[%clk 0:00:26.4]}
37... Rf4 {[%clk 0:00:51.7]} 38. Nc1 {[%clk 0:00:23.7]} 38... Raf8 {[%clk
0:00:51]} 39. N1e2 {[%clk 0:00:23.5]} 39... R4f7 {[%clk 0:00:49.1]} 40. Kh4
{[%clk 0:00:19.3]} 40... Rg7 {[%clk 0:00:49.4]} 41. Rb1 {[%clk 0:00:13.7]} 41...
Rf2 {[%clk 0:00:48.7]} 42. Kh3 {[%clk 0:00:15.1]} 42... Rf6 {[%clk 0:00:47.1]}
0-1

[Event "*** MasterClass Titled Tuesday Blitz"]
[Site "Chess.com"]
[Date "2017.09.05"]
[Round "8"]
[White "workhard91"]
[Black "iusegine"]
[Result "0-1"]
[WhiteElo "2301"]
[BlackElo "2387"]
[TimeControl "180+2"]
[EndTime "14:57:55 PDT"]
[Termination "iusegine won by checkmate"]

1. e4 {[%clk 0:03:01.9]} 1... c5 {[%clk 0:02:59]} 2. Nf3 {[%clk 0:03:02.6]} 2...
d6 {[%clk 0:03:00.1]} 3. Bb5+ {[%clk 0:03:03.6]} 3... Nd7 {[%clk 0:03:00.6]} 4.
O-O {[%clk 0:02:58.1]} 4... a6 {[%clk 0:03:00.5]} 5. Bd3 {[%clk 0:02:59.3]} 5...
Ngf6 {[%clk 0:02:47.7]} 6. Re1 {[%clk 0:02:49.6]} 6... e5 {[%clk 0:02:47.4]} 7.
Bf1 {[%clk 0:02:39.6]} 7... g6 {[%clk 0:02:42.7]} 8. c3 {[%clk 0:02:39.8]} 8...
Bg7 {[%clk 0:02:42.5]} 9. d4 {[%clk 0:02:40.9]} 9... O-O {[%clk 0:02:16.7]} 10.
dxe5 {[%clk 0:02:18]} 10... dxe5 {[%clk 0:02:18.6]} 11. c4 {[%clk 0:02:19.1]}
11... Ne8 {[%clk 0:01:49.4]} 12. Nc3 {[%clk 0:02:18.5]} 12... Nc7 {[%clk
0:01:49.9]} 13. Nd5 {[%clk 0:02:06.4]} 13... Ne6 {[%clk 0:01:50.7]} 14. Be3
{[%clk 0:01:34.5]} 14... Nd4 {[%clk 0:01:43.5]} 15. b4 {[%clk 0:01:35.1]} 15...
b6 {[%clk 0:01:10.8]} 16. Rb1 {[%clk 0:01:34]} 16... h6 {[%clk 0:00:35.4]} 17.
a4 {[%clk 0:00:51.6]} 17... a5 {[%clk 0:00:33.3]} 18. bxc5 {[%clk 0:00:49.9]}
18... bxc5 {[%clk 0:00:34.4]} 19. Nd2 {[%clk 0:00:22]} 19... f5 {[%clk
0:00:30.1]} 20. f3 {[%clk 0:00:22.9]} 20... Ra6 {[%clk 0:00:24.1]} 21. Rb5
{[%clk 0:00:22.3]} 21... f4 {[%clk 0:00:22.8]} 22. Bf2 {[%clk 0:00:23.1]} 22...
g5 {[%clk 0:00:24.3]} 23. Nb3 {[%clk 0:00:21.1]} 23... Rg6 {[%clk 0:00:14.1]}
24. h3 {[%clk 0:00:17.4]} 24... h5 {[%clk 0:00:14.9]} 25. Nxc5 {[%clk
0:00:16.7]} 25... Nxc5 {[%clk 0:00:15.8]} 26. Rxc5 {[%clk 0:00:18.6]} 26... g4
{[%clk 0:00:16.5]} 27. Rxc8 {[%clk 0:00:15.6]} 27... Qg5 {[%clk 0:00:13.7]} 28.
Rxf8+ {[%clk 0:00:15.2]} 28... Bxf8 {[%clk 0:00:14.9]} 29. fxg4 {[%clk
0:00:16.8]} 29... hxg4 {[%clk 0:00:15.6]} 30. Qxg4 {[%clk 0:00:18.7]} 30... Qh6
{[%clk 0:00:16.7]} 31. Bxd4 {[%clk 0:00:11.9]} 31... Rxg4 {[%clk 0:00:17.2]} 32.
hxg4 {[%clk 0:00:12.2]} 32... exd4 {[%clk 0:00:18.6]} 33. e5 {[%clk 0:00:13.6]}
33... Qh4 {[%clk 0:00:16.4]} 34. Rd1 {[%clk 0:00:13.6]} 34... f3 {[%clk
0:00:15.9]} 35. gxf3 {[%clk 0:00:11.5]} 35... d3 {[%clk 0:00:16.1]} 36. Bg2
{[%clk 0:00:13.4]} 36... Bc5+ {[%clk 0:00:17.2]} 37. Ne3 {[%clk 0:00:12.1]}
37... Bxe3+ {[%clk 0:00:17.3]} 38. Kf1 {[%clk 0:00:13.6]} 38... Qf2# {[%clk
0:00:19]} 0-1

[Event "*** MasterClass Titled Tuesday Blitz"]
[Site "Chess.com"]
[Date "2017.09.05"]
[Round "8"]
[White "r31415"]
[Black "2L8IWUN"]
[Result "0-1"]
[WhiteElo "2142"]
[BlackElo "1811"]
[TimeControl "180+2"]
[EndTime "14:58:01 PDT"]
[Termination "2L8IWUN won by resignation"]

1. e4 {[%clk 0:03:02]} 1... c5 {[%clk 0:03:00]} 2. Nf3 {[%clk 0:03:02.5]} 2...
d6 {[%clk 0:03:00.7]} 3. d4 {[%clk 0:03:03.9]} 3... cxd4 {[%clk 0:03:02.6]} 4.
Nxd4 {[%clk 0:03:05.2]} 4... Nf6 {[%clk 0:03:04]} 5. Nc3 {[%clk 0:03:06.8]} 5...
Nc6 {[%clk 0:03:05.2]} 6. h3 {[%clk 0:03:07.4]} 6... e5 {[%clk 0:03:01.1]} 7.
Nde2 {[%clk 0:03:08.4]} 7... h5 {[%clk 0:02:59.1]} 8. Ng1 {[%clk 0:03:05.3]}
8... Be6 {[%clk 0:02:58.4]} 9. Nf3 {[%clk 0:02:43.7]} 9... d5 {[%clk 0:02:58.5]}
10. exd5 {[%clk 0:02:44.9]} 10... Nxd5 {[%clk 0:03:00.4]} 11. Nxd5 {[%clk
0:02:37.8]} 11... Qxd5 {[%clk 0:02:57.7]} 12. Qxd5 {[%clk 0:02:31.3]} 12... Bxd5
{[%clk 0:02:59.6]} 13. Ng5 {[%clk 0:02:32.7]} 13... f6 {[%clk 0:02:57.7]} 14. c4
{[%clk 0:02:33.3]} 14... Bg8 {[%clk 0:02:36.4]} 15. Ne4 {[%clk 0:02:22.6]} 15...
Nb4 {[%clk 0:02:35.8]} 16. Rb1 {[%clk 0:02:01.1]} 16... O-O-O {[%clk 0:02:26.1]}
17. Bd2 {[%clk 0:01:47]} 17... Nxa2 {[%clk 0:02:14]} 18. b4 {[%clk 0:01:24.2]}
18... Rd4 {[%clk 0:01:21.3]} 19. f3 {[%clk 0:01:15.2]} 19... Bxc4 {[%clk
0:01:18.4]} 20. Be3 {[%clk 0:01:11]} 20... Bxf1 {[%clk 0:01:16.4]} 21. Bxd4
{[%clk 0:01:10.2]} 21... Bxg2 {[%clk 0:01:12.7]} 22. Rh2 {[%clk 0:00:58.3]}
22... exd4 {[%clk 0:01:03.8]} 23. Rxg2 {[%clk 0:00:48.3]} 23... Nxb4 {[%clk
0:00:57.6]} 24. Rd2 {[%clk 0:00:31.5]} 24... Nc6 {[%clk 0:00:56.9]} 25. Rdb2
{[%clk 0:00:29.6]} 25... b6 {[%clk 0:00:54.1]} 26. Rc2 {[%clk 0:00:27.4]} 26...
Kb7 {[%clk 0:00:51.7]} 27. Rbc1 {[%clk 0:00:27.6]} 27... Bb4+ {[%clk 0:00:48.6]}
28. Kf1 {[%clk 0:00:20.6]} 28... Rc8 {[%clk 0:00:42.6]} 29. Rc4 {[%clk
0:00:22.1]} 29... f5 {[%clk 0:00:30]} 30. Ng3 {[%clk 0:00:11.9]} 30... g6 {[%clk
0:00:18.7]} 31. Ne2 {[%clk 0:00:09.6]} 31... d3 {[%clk 0:00:16.7]} 32. Nf4
{[%clk 0:00:07.9]} 32... b5 {[%clk 0:00:14.1]} 33. Rxc6 {[%clk 0:00:02.3]} 33...
Rxc6 {[%clk 0:00:12.3]} 34. Rxc6 {[%clk 0:00:04.2]} 34... Kxc6 {[%clk
0:00:13.3]} 35. Nxd3 {[%clk 0:00:06.1]} 35... Bd6 {[%clk 0:00:13.3]} 36. Ke2
{[%clk 0:00:04.8]} 36... a5 {[%clk 0:00:14.4]} 37. Kd2 {[%clk 0:00:05.1]} 37...
a4 {[%clk 0:00:15.3]} 38. Kc2 {[%clk 0:00:06.5]} 38... Kd5 {[%clk 0:00:16.7]}
39. Kc3 {[%clk 0:00:05.7]} 39... b4+ {[%clk 0:00:16.9]} 40. Kc2 {[%clk
0:00:06.3]} 0-1

[Event "*** MasterClass Titled Tuesday Blitz"]
[Site "Chess.com"]
[Date "2017.09.05"]
[Round "8"]
[White "MatthewG-p4p"]
[Black "chessking2151"]
[Result "1-0"]
[WhiteElo "2571"]
[BlackElo "2342"]
[TimeControl "180+2"]
[EndTime "14:58:04 PDT"]
[Termination "MatthewG-p4p won by resignation"]

1. f4 {[%clk 0:02:56]} 1... b6 {[%clk 0:02:55]} 2. Nf3 {[%clk 0:02:49]} 2... Bb7
{[%clk 0:02:55.2]} 3. e3 {[%clk 0:02:50.5]} 3... e6 {[%clk 0:02:54.6]} 4. b3
{[%clk 0:02:43.9]} 4... Be7 {[%clk 0:02:54]} 5. Bb2 {[%clk 0:02:44.9]} 5... Bf6
{[%clk 0:02:55.2]} 6. Nc3 {[%clk 0:02:45]} 6... d5 {[%clk 0:02:55.5]} 7. Be2
{[%clk 0:02:45.2]} 7... h5 {[%clk 0:02:56.4]} 8. O-O {[%clk 0:02:45.7]} 8... Nh6
{[%clk 0:02:55.2]} 9. Ne5 {[%clk 0:02:44.9]} 9... g6 {[%clk 0:02:52.9]} 10. a4
{[%clk 0:02:39.2]} 10... Nd7 {[%clk 0:02:53.1]} 11. d4 {[%clk 0:02:38.6]} 11...
Nf5 {[%clk 0:02:49.6]} 12. Qd2 {[%clk 0:02:39.3]} 12... a5 {[%clk 0:02:17.7]}
13. Ba3 {[%clk 0:02:38.5]} 13... Be7 {[%clk 0:02:13.1]} 14. Bxe7 {[%clk
0:02:37.2]} 14... Kxe7 {[%clk 0:02:04]} 15. Bb5 {[%clk 0:02:35.5]} 15... Nb8
{[%clk 0:01:50.9]} 16. Qe1 {[%clk 0:02:32.1]} 16... c6 {[%clk 0:01:49.5]} 17.
Bd3 {[%clk 0:02:33]} 17... Nd7 {[%clk 0:01:38.6]} 18. Bxf5 {[%clk 0:02:33.8]}
18... exf5 {[%clk 0:01:38.4]} 19. Ne2 {[%clk 0:02:27.4]} 19... Ke6 {[%clk
0:01:32.3]} 20. c4 {[%clk 0:02:25.4]} 20... c5 {[%clk 0:01:22.7]} 21. dxc5
{[%clk 0:02:22.8]} 21... Nxc5 {[%clk 0:01:21.9]} 22. Nd4+ {[%clk 0:02:23.2]}
22... Kf6 {[%clk 0:01:22.3]} 23. Ndc6 {[%clk 0:02:16]} 23... Qc7 {[%clk
0:00:40.3]} 24. cxd5 {[%clk 0:02:13.1]} 24... Kg7 {[%clk 0:00:39.4]} 25. Qc3
{[%clk 0:02:12.6]} 25... f6 {[%clk 0:00:40.3]} 26. Nf3 {[%clk 0:01:57.2]} 26...
Bxc6 {[%clk 0:00:36.9]} 27. dxc6 {[%clk 0:01:58.5]} 27... Qxc6 {[%clk
0:00:38.9]} 28. Nd4 {[%clk 0:01:59.9]} 28... Qe4 {[%clk 0:00:38.6]} 29. Rfd1
{[%clk 0:01:55.8]} 29... Rhe8 {[%clk 0:00:39.1]} 30. Re1 {[%clk 0:01:50.3]}
30... Rac8 {[%clk 0:00:39.5]} 31. Qd2 {[%clk 0:01:42]} 31... Nd3 {[%clk
0:00:34.8]} 32. Re2 {[%clk 0:01:43]} 32... Red8 {[%clk 0:00:23]} 33. Rd1 {[%clk
0:01:42.4]} 33... Nb4 {[%clk 0:00:19]} 34. h3 {[%clk 0:01:39.3]} 34... h4 {[%clk
0:00:19.7]} 35. Qe1 {[%clk 0:01:36]} 35... Rd5 {[%clk 0:00:07.9]} 36. Red2
{[%clk 0:01:35]} 36... Rcd8 {[%clk 0:00:06.9]} 37. Qf2 {[%clk 0:01:33.1]} 37...
Na6 {[%clk 0:00:06.4]} 38. Kh2 {[%clk 0:01:31.6]} 38... Kf7 {[%clk 0:00:07.2]}
39. Qxh4 {[%clk 0:01:30.3]} 39... Qxe3 {[%clk 0:00:08.3]} 40. Qh7+ {[%clk
0:01:31.2]} 40... Kf8 {[%clk 0:00:09.4]} 41. Qxg6 {[%clk 0:01:26.8]} 41... Qxf4+
{[%clk 0:00:10.1]} 42. g3 {[%clk 0:01:27.1]} 42... Qe5 {[%clk 0:00:08.3]} 43.
Qh6+ {[%clk 0:01:14.9]} 43... Kf7 {[%clk 0:00:09.6]} 44. Qh5+ {[%clk 0:01:15.4]}
44... Kf8 {[%clk 0:00:05.2]} 45. Re2 {[%clk 0:01:08.5]} 45... Rxd4 {[%clk
0:00:04.1]} 46. Rxe5 {[%clk 0:01:09.1]} 46... fxe5 {[%clk 0:00:03.9]} 47. Qxf5+
{[%clk 0:01:08.8]} 47... Kg8 {[%clk 0:00:05.3]} 48. Qg5+ {[%clk 0:01:05.9]}
48... Kf7 {[%clk 0:00:06]} 49. Qxd8 {[%clk 0:01:06.8]} 49... Rxd8 {[%clk
0:00:06.5]} 50. Rxd8 {[%clk 0:01:08.7]} 50... Nc5 {[%clk 0:00:08.4]} 51. Rb8
{[%clk 0:01:09.6]} 51... Nxb3 {[%clk 0:00:09.3]} 52. Rxb6 {[%clk 0:01:10.8]}
52... Nc5 {[%clk 0:00:11.3]} 53. Rb5 {[%clk 0:01:12]} 53... Nxa4 {[%clk
0:00:12.8]} 54. Rxe5 {[%clk 0:01:13]} 54... Nc3 {[%clk 0:00:14.8]} 55. Rxa5
{[%clk 0:01:14.5]} 55... Kf6 {[%clk 0:00:15.9]} 56. h4 {[%clk 0:01:15.5]} 1-0